fUSD/lending_fUSD_20260118
["ID","MTS","AMOUNT","RATE_DAILY","PERIOD"]
[402528951,1768698648846,-500.0,0.00016712,2]
[402528952,1768698648856,-500.0,0.00016712,2]
[402528953,1768698648866,-996.94,0.00016712,2]
[402528954,1768698648875,-500.0,0.00016712,2]
[402528955,1768698648885,-247.26060348,0.00016712,2]
[402528956,1768698648894,-500.0,0.00016712,2]
[402528957,1768698648904,-590.76,0.00016712,2]
[402528958,1768698648914,-500.0,0.00016712,2]
[402528959,1768698648924,-500.0,0.00016712,2]
[402528960,1768698648934,-500.0,0.00016712,2]
[402528961,1768698648944,-525.89,0.00016712,2]
[402528962,1768698648954,-500.0,0.00016712,2]
[402528963,1768698648963,-500.0,0.00016712,2]
[402528964,1768698648973,-618.01,0.00016712,2]
[402528965,1768698648983,-594.13,0.00016712,2]
[402528966,1768698648992,-575.6,0.00016712,2]
[402528967,1768698649001,-662.62,0.00016712,2]
[402528968,1768698649010,-500.0,0.00016712,2]
[402528969,1768698649020,-500.0,0.00016712,2]
[402528970,1768698649029,-500.0,0.00016712,2]
[402528971,1768698649038,-500.0,0.00016712,2]
[402528972,1768698649047,-500.0,0.00016712,2]
[402528973,1768698649056,-672.53,0.00016712,2]
[402528974,1768698649066,-500.0,0.00016712,2]
[402528975,1768698649170,-500.0,0.00016712,2]
[402528976,1768698649180,-500.0,0.00016712,2]
[402528977,1768698649190,-500.0,0.00016712,2]
[402528978,1768698649199,-520.69,0.00016712,2]
[402528979,1768698649208,-500.0,0.00016712,2]
[402528980,1768698649219,-500.0,0.00016712,2]
[402528981,1768698649228,-795.23,0.00016712,2]
[402528982,1768698649238,-500.0,0.00016712,2]
[402528983,1768698649246,-500.0,0.00016712,2]
[402528984,1768698649256,-500.0,0.00016712,2]
[402528985,1768698649266,-613.06,0.00016712,2]
[402528986,1768698649275,-500.0,0.00016712,2]
[402528987,1768698649284,-500.0,0.00016712,2]
[402528988,1768698649294,-500.0,0.00016712,2]
[402528989,1768698649303,-500.0,0.00016712,2]
[402528990,1768698649311,-526.73,0.00016712,2]
[402528991,1768698649320,-500.0,0.00016712,2]
[402528992,1768698649329,-500.0,0.00016712,2]
[402528993,1768698649338,-512.15,0.00016712,2]
[402528994,1768698649348,-500.0,0.00016712,2]
[402528995,1768698649358,-500.0,0.00016712,2]
[402528996,1768698649367,-500.0,0.00016712,2]
[402528997,1768698649376,-591.24,0.00016712,2]
[402528998,1768698649385,-556.47,0.00016712,2]
[402528999,1768698649395,-660.93,0.00016712,2]
[402529000,1768698649404,-515.32,0.00016712,2]
[402529001,1768698649415,-500.0,0.00016712,2]
[402529002,1768698649424,-500.0,0.00016712,2]
[402529003,1768698649434,-500.0,0.00016712,2]
[402529004,1768698649443,-500.0,0.00016712,2]
[402529005,1768698649453,-500.0,0.00016712,2]
[402529006,1768698649462,-500.0,0.00016712,2]
[402529007,1768698649472,-500.0,0.00016712,2]
[402529008,1768698649481,-500.0,0.00016712,2]
[402529009,1768698649490,-500.0,0.00016712,2]
[402529010,1768698649499,-517.54,0.00016712,2]
[402529011,1768698649508,-500.0,0.00016712,2]
[402529012,1768698649517,-500.0,0.00016712,2]
[402529013,1768698649526,-508.13792486,0.00016712,2]
[402529014,1768698649535,-531.76,0.00016712,2]
[402529015,1768698649544,-500.0,0.00016712,2]
[402529016,1768698649554,-500.0,0.00016712,2]
[402529017,1768698649563,-521.50000757,0.00016712,2]
[402529018,1768698649572,-500.0,0.00016712,2]
[402529019,1768698649582,-500.0,0.00016712,2]
[402529020,1768698649592,-500.0,0.00016712,2]
[402529021,1768698649601,-500.0,0.00016712,2]
[402529022,1768698649610,-600.68,0.00016712,2]
[402529023,1768698649620,-500.0,0.00016712,2]
[402529024,1768698649629,-1529.19,0.00016712,2]
[402529025,1768698649638,-500.0,0.00016712,2]
[402529026,1768698649652,-500.0,0.00016712,2]
[402529027,1768698649663,-500.0,0.00016712,2]
[402529028,1768698649672,-500.0,0.00016712,2]
[402529029,1768698649681,-500.0,0.00016712,2]
[402529030,1768698649691,-500.0,0.00016712,2]
[402529031,1768698649700,-838.7,0.00016712,2]
[402529032,1768698649710,-500.0,0.00016712,2]
[402529033,1768698649719,-500.0,0.00016712,2]
[402529034,1768698649728,-567.94,0.00016712,2]
[402529035,1768698649739,-518.89,0.00016712,2]
[402529036,1768698649748,-673.61,0.00016712,2]
[402529037,1768698649757,-543.14,0.00016712,2]
[402529038,1768698649767,-721.15,0.00016712,2]
[402529039,1768698649776,-500.0,0.00016712,2]
[402529040,1768698649785,-500.0,0.00016712,2]
[402529041,1768698649794,-500.0,0.00016712,2]
[402529042,1768698649803,-500.0,0.00016712,2]
[402529043,1768698649812,-500.0,0.00016712,2]
[402529044,1768698649821,-500.0,0.00016712,2]
[402529045,1768698649830,-500.0,0.00016712,2]
[402529046,1768698649840,-500.0,0.00016712,2]
[402529047,1768698649849,-795.04,0.00016712,2]
[402529048,1768698649859,-500.0,0.00016712,2]
[402529049,1768698649869,-500.0,0.00016712,2]
[402529050,1768698649878,-500.0,0.00016712,2]
[402529051,1768698649888,-565.67125462,0.00016712,2]
[402529052,1768698649898,-409.49800143,0.00016712,2]
[402529053,1768698649908,-500.0,0.00016712,2]
[402529054,1768698649919,-747.61,0.00016712,2]
[402529055,1768698649929,-500.0,0.00016712,2]
[402529056,1768698649938,-500.0,0.00016712,2]
[402529057,1768698649948,-532.71,0.00016712,2]
[402529058,1768698649957,-500.0,0.00016712,2]
[402529059,1768698649967,-500.0,0.00016712,2]
[402529060,1768698649976,-500.0,0.00016712,2]
[402529061,1768698649985,-500.0,0.00016712,2]
[402529062,1768698649994,-500.0,0.00016712,2]
[402529063,1768698650007,-564.09,0.00016712,2]
[402529064,1768698650018,-500.0,0.00016712,2]
[402529065,1768698650028,-880.67,0.00016712,2]
[402529066,1768698650037,-500.0,0.00016712,2]
[402529067,1768698650047,-500.0,0.00016712,2]
[402529068,1768698650057,-583.61,0.00016712,2]
[402529069,1768698650066,-520.2841448,0.00016712,2]
[402529070,1768698650076,-500.0,0.00016712,2]
[402529071,1768698650086,-500.0,0.00016712,2]
[402529072,1768698650095,-500.0,0.00016712,2]
[402529073,1768698650105,-500.0,0.00016712,2]
[402529074,1768698650114,-998.71,0.00016712,2]
[402529075,1768698650124,-500.0,0.00016712,2]
[402529076,1768698650134,-546.74672308,0.00016712,2]
[402529077,1768698650144,-500.0,0.00016712,2]
[402529078,1768698650154,-500.0,0.00016712,2]
[402529079,1768698650164,-500.0,0.00016712,2]
[402529080,1768698650173,-500.0,0.00016712,2]
[402529081,1768698650183,-876.66,0.00016712,2]
[402529082,1768698650192,-500.0,0.00016712,2]
[402529083,1768698650202,-500.0,0.00016712,2]
[402529084,1768698650214,-265.98,0.00016712,2]
[402529085,1768698650223,-559.23,0.00016712,2]
[402529086,1768698650232,-500.0,0.00016712,2]
[402529087,1768698650242,-510.62,0.00016712,2]
[402529088,1768698650251,-500.0,0.00016712,2]
[402529089,1768698650262,-500.0,0.00016712,2]
[402529090,1768698650272,-500.0,0.00016712,2]
[402529091,1768698650281,-500.0,0.00016712,2]
[402529092,1768698650293,-500.0,0.00016712,2]
[402529093,1768698650302,-890.18,0.00016712,2]
[402529094,1768698650312,-500.0,0.00016712,2]
[402529095,1768698650321,-500.0,0.00016712,2]
[402529096,1768698650331,-811.3,0.00016712,2]
[402529097,1768698650340,-500.0,0.00016712,2]
[402529098,1768698650349,-500.0,0.00016712,2]
[402529099,1768698650359,-500.0,0.00016712,2]
[402529100,1768698650368,-500.0,0.00016712,2]
[402529101,1768698650378,-500.0,0.00016712,2]
[402529102,1768698650391,-500.0,0.00016712,2]
[402529103,1768698650400,-500.0,0.00016712,2]
[402529104,1768698650410,-617.43,0.00016712,2]
[402529105,1768698650419,-278.51,0.00016712,2]
[402529106,1768698650428,-742.02,0.00016712,2]
[402529107,1768698650438,-500.0,0.00016712,2]
[402529108,1768698650447,-601.67,0.00016712,2]
[402529109,1768698650456,-521.55,0.00016712,2]
[402529110,1768698650465,-500.0,0.00016712,2]
[402529111,1768698650475,-1195.2,0.00016712,2]
[402529112,1768698650484,-676.44,0.00016712,2]
[402529113,1768698650493,-715.07,0.00016712,2]
[402529114,1768698650502,-945.1,0.00016712,2]
[402529115,1768698650512,-500.0,0.00016712,2]
[402529116,1768698650521,-576.18,0.00016712,2]
[402529117,1768698650531,-472.40053266,0.00016712,2]
[402529118,1768698650541,-500.0,0.00016712,2]
[402529119,1768698650551,-500.0,0.00016712,2]
[402529120,1768698650561,-500.0,0.00016712,2]
[402529121,1768698650570,-500.0,0.00016712,2]
[402529122,1768698650584,-929.43,0.00016712,2]
[402529123,1768698650593,-658.51,0.00016712,2]
[402529124,1768698650603,-500.0,0.00016712,2]
[402529125,1768698650613,-500.0,0.00016712,2]
[402529126,1768698650623,-1186.57,0.00016712,2]
[402529127,1768698650632,-1058.82722253,0.00016712,2]
[402529128,1768698650642,-500.0,0.00016712,2]
[402529129,1768698650651,-804.65,0.00016712,2]
[402529130,1768698650660,-500.0,0.00016712,2]
[402529131,1768698650670,-556.52,0.00016712,2]
[402529132,1768698650680,-500.0,0.00016712,2]
[402529133,1768698650689,-500.0,0.00016712,2]
[402529134,1768698650698,-500.0,0.00016712,2]
[402529135,1768698650708,-500.0,0.00016712,2]
[402529136,1768698650717,-958.14,0.00016712,2]
[402529137,1768698650726,-500.0,0.00016712,2]
[402529138,1768698650736,-567.08,0.00016712,2]
[402529139,1768698650745,-872.91,0.00016712,2]
[402529140,1768698650754,-500.0,0.00016712,2]
[402529141,1768698650764,-500.0,0.00016712,2]
[402529142,1768698650776,-833.89,0.00016712,2]
[402529143,1768698650786,-500.0,0.00016712,2]
[402529144,1768698650795,-839.94,0.00016712,2]
[402529145,1768698650804,-500.0,0.00016712,2]
[402529146,1768698650813,-707.98,0.00016712,2]
[402529147,1768698650823,-500.0,0.00016712,2]
[402529148,1768698650832,-963.32,0.00016712,2]
[402529149,1768698650841,-500.0,0.00016712,2]
[402529150,1768698650851,-567.81,0.00016712,2]
[402529151,1768698650860,-500.0,0.00016712,2]
[402529152,1768698650869,-500.0,0.00016712,2]
[402529153,1768698650879,-500.0,0.00016712,2]
[402529154,1768698650889,-500.0,0.00016712,2]
[402529155,1768698650898,-500.0,0.00016712,2]
[402529156,1768698650908,-500.0,0.00016712,2]
[402529157,1768698650918,-1118.6,0.00016712,2]
[402529158,1768698650928,-500.0,0.00016712,2]
[402529159,1768698650937,-500.0,0.00016712,2]
[402529160,1768698650947,-579.96,0.00016712,2]
[402529161,1768698650956,-767.08,0.00016712,2]
[402529162,1768698650966,-500.0,0.00016712,2]
[402529163,1768698650975,-597.37,0.00016712,2]
[402529164,1768698650985,-500.0,0.00016712,2]
[402529165,1768698650995,-926.65,0.00016712,2]
[402529166,1768698651004,-500.0,0.00016712,2]
[402529167,1768698651014,-526.05,0.00016712,2]
[402529168,1768698651023,-1077.63,0.00016712,2]
[402529169,1768698651032,-500.0,0.00016712,2]
[402529170,1768698651041,-500.0,0.00016712,2]
[402529171,1768698651051,-838.61,0.00016712,2]
[402529172,1768698651060,-500.0,0.00016712,2]
[402529173,1768698651070,-587.08,0.00016712,2]
[402529174,1768698651080,-500.0,0.00016712,2]
[402529175,1768698651090,-522.86,0.00016712,2]
[402529176,1768698651099,-500.0,0.00016712,2]
[402529177,1768698651108,-564.65,0.00016712,2]
[402529178,1768698651118,-500.0,0.00016712,2]
[402529179,1768698651127,-500.0,0.00016712,2]
[402529180,1768698651137,-500.0,0.00016712,2]
[402529181,1768698651146,-500.0,0.00016712,2]
[402529182,1768698651155,-513.81,0.00016712,2]
[402529183,1768698651174,-512.65,0.00016712,2]
[402529184,1768698651185,-500.0,0.00016712,2]
[402529185,1768698651195,-503.46,0.00016712,2]
[402529186,1768698651204,-750.04,0.00016712,2]
[402529187,1768698651219,-1013.69,0.00016712,2]
[402529188,1768698651228,-653.37,0.00016712,2]
[402529189,1768698651237,-500.0,0.00016712,2]
[402529190,1768698651246,-500.0,0.00016712,2]
[402529191,1768698651255,-500.0,0.00016712,2]
[402529192,1768698651265,-512.66,0.00016712,2]
[402529193,1768698651274,-500.0,0.00016712,2]
[402529194,1768698651285,-863.05,0.00016712,2]
[402529195,1768698651294,-500.0,0.00016712,2]
[402529196,1768698651303,-500.0,0.00016712,2]
[402529197,1768698651312,-500.0,0.00016712,2]
[402529198,1768698651321,-500.0,0.00016712,2]
[402529199,1768698651330,-476.45181661,0.00016712,2]
[402529200,1768698651341,-500.0,0.00016712,2]
[402529201,1768698651350,-500.0,0.00016712,2]
[402529202,1768698651359,-500.0,0.00016712,2]
[402529203,1768698651369,-500.0,0.00016712,2]
[402529204,1768698651378,-994.07,0.00016712,2]
[402529205,1768698651388,-500.0,0.00016712,2]
[402529206,1768698651397,-787.16,0.00016712,2]
[402529207,1768698651406,-500.0,0.00016712,2]
[402529208,1768698651417,-500.0,0.00016712,2]
[402529209,1768698651427,-500.0,0.00016712,2]
[402529210,1768698651435,-500.0,0.00016712,2]
[402529211,1768698651445,-500.0,0.00016712,2]
[402529212,1768698651454,-608.92,0.00016712,2]
[402529213,1768698651463,-500.0,0.00016712,2]
[402529214,1768698651473,-500.0,0.00016712,2]
[402529215,1768698651482,-500.0,0.00016712,2]
[402529216,1768698651491,-500.0,0.00016712,2]
[402529217,1768698651501,-500.0,0.00016712,2]
[402529218,1768698651510,-500.0,0.00016712,2]
[402529219,1768698651519,-500.0,0.00016712,2]
[402529220,1768698651528,-671.86,0.00016712,2]
[402529221,1768698651537,-620.45356741,0.00016712,2]
[402529222,1768698651547,-676.09,0.00016712,2]
[402529223,1768698651557,-565.03,0.00016712,2]
[402529224,1768698651567,-500.0,0.00016712,2]
[402529225,1768698651576,-500.0,0.00016712,2]
[402529226,1768698651586,-546.16389991,0.00016712,2]
[402529227,1768698651596,-500.0,0.00016712,2]
[402529228,1768698651605,-500.0,0.00016712,2]
[402529229,1768698651615,-500.0,0.00016712,2]
[402529230,1768698651624,-500.0,0.00016712,2]
[402529231,1768698651634,-9019.17,0.00016712,2]
[402529232,1768698651644,-500.0,0.00016712,2]
[402529233,1768698651653,-500.0,0.00016712,2]
[402529234,1768698651662,-500.0,0.00016712,2]
[402529235,1768698651671,-500.0,0.00016712,2]
[402529236,1768698651681,-5888.0,0.00016712,2]
[402529237,1768698651690,-600.0,0.00016712,2]
[402529238,1768698651700,-1000.0,0.00016712,2]
[402529239,1768698651709,-150.0,0.00016718,2]
[402529240,1768698651723,-150.0,0.00016729,2]
[402529241,1768698651733,-1680.0,0.00016735,2]
[402529242,1768698651743,-150.0,0.00016742,2]
[402529243,1768698651752,-800.39462936,0.00016745,2]
[402529244,1768698651762,-150.0,0.00016762,2]
[402529245,1768698651772,-150.0,0.00016767,2]
[402529246,1768698651781,-500.0,0.00016773,2]
[402529247,1768698651790,-291.14417023,0.00016773,2]
[402529248,1768698651800,-500.0,0.00016773,2]
[402529249,1768698651810,-500.0,0.00016773,2]
[402529250,1768698651820,-500.0,0.00016773,2]
[402529251,1768698651829,-500.0,0.00016773,2]
[402529252,1768698651838,-500.0,0.00016773,2]
[402529253,1768698651847,-500.0,0.00016773,2]
[402529254,1768698651856,-500.0,0.00016773,2]
[402529255,1768698651865,-500.98800535,0.00016773,2]
[402529256,1768698651875,-500.0,0.00016773,2]
[402529257,1768698651884,-500.0,0.00016773,2]
[402529258,1768698651893,-500.0,0.00016773,2]
[402529259,1768698651902,-500.0,0.00016773,2]
[402529260,1768698651911,-500.0,0.00016773,2]
[402529261,1768698651920,-500.0,0.00016773,2]
[402529262,1768698651929,-500.0,0.00016773,2]
[402529263,1768698651939,-543.38282097,0.00016773,2]
[402529264,1768698651949,-414.52858729,0.00016773,2]
[402529265,1768698651958,-500.0,0.00016773,2]
[402529266,1768698651967,-500.0,0.00016773,2]
[402529267,1768698651976,-500.0,0.00016773,2]
[402529268,1768698651985,-500.0,0.00016773,2]
[402529269,1768698651994,-500.0,0.00016773,2]
[402529270,1768698652004,-500.0,0.00016773,2]
[402529271,1768698652013,-500.0,0.00016773,2]
[402529272,1768698652023,-312.9434502,0.00016773,2]
[402529273,1768698652033,-500.0,0.00016773,2]
[402529274,1768698652042,-343.36959723,0.00016773,2]
[402529275,1768698652052,-500.0,0.00016773,2]
[402529276,1768698652062,-500.0,0.00016773,2]
[402529277,1768698652071,-150.0,0.00016792,2]
[402529278,1768698652081,-150.0,0.000168,2]
[402529279,1768698652091,-150.0,0.00016816,2]
[402529280,1768698652101,-295.87496328,0.00016827,2]
[402529281,1768698652110,-150.0,0.00016835,2]
[402529282,1768698652119,-150.0,0.00016841,2]
[402529283,1768698652129,-150.0,0.00016866,2]
[402529284,1768698652138,-150.0,0.00016875,2]
[402529285,1768698652147,-150.0,0.00016875,2]
[402529286,1768698652157,-150.0,0.00016875,2]
[402529287,1768698652167,-561.3196,0.00016886,2]
[402529288,1768698652177,-150.0,0.0001689,2]
[402529289,1768698652187,-2000.0,0.000169,6]
[402529290,1768698652197,-150.0,0.00016915,2]
[402529291,1768698652207,-4825.0,0.00016921,2]
[402529292,1768698652218,-2455.889,0.00016921,2]
[402529293,1768698652228,-6561.0,0.00016921,2]
[402529294,1768698652238,-150.0,0.0001694,2]
[402529295,1768698652248,-150.0,0.00016941,2]
[402529296,1768698652261,-150.0,0.0001695,2]
[402529297,1768698652271,-150.0,0.00016964,2]
[402529298,1768698652280,-1624.4,0.0001697,2]
[402529299,1768698652291,-2660.3339284,0.00016977,2]
[402529300,1768698652301,-1198.7222191,0.00016977,2]
[402529301,1768698652311,-106671.6186151,0.00016977,2]
[402529302,1768698652320,-5888.0,0.00016985,2]
[402529303,1768698652330,-500.0,0.00016985,2]
[402529304,1768698652340,-500.0,0.00016985,2]
[402529305,1768698652349,-500.0,0.00016985,2]
[402529306,1768698652359,-500.0,0.00016985,2]
[402529307,1768698652369,-499.89259322,0.00016985,2]
[402529308,1768698652379,-300.0,0.00016985,2]
[402529309,1768698652389,-251.73810976,0.00016986,2]
[402529310,1768698652400,-200.0,0.00016986,2]
[402529311,1768698652410,-500.0,0.00016986,2]
[402529312,1768698652420,-500.0,0.00016986,2]
[402529313,1768698652430,-500.0,0.00016986,2]
[402529314,1768698652443,-531.4,0.00016986,2]
[402529315,1768698652452,-500.0,0.00016986,2]
[402529316,1768698652462,-500.0,0.00016986,2]
[402529317,1768698652472,-569.32,0.00016986,2]
[402529318,1768698652481,-500.0,0.00016986,2]
[402529319,1768698652491,-500.0,0.00016986,2]
[402529320,1768698652500,-500.0,0.00016986,2]
[402529321,1768698652510,-466.34525944,0.00016986,2]
[402529322,1768698652520,-500.0,0.00016986,2]
[402529323,1768698652530,-194.74424771,0.00016986,2]
[402529324,1768698652541,-500.0,0.00016986,2]
[402529325,1768698652550,-500.0,0.00016986,2]
[402529326,1768698652559,-500.0,0.00016986,2]
[402529327,1768698652568,-500.0,0.00016986,2]
[402529328,1768698652578,-500.0,0.00016986,2]
[402529329,1768698652587,-500.0,0.00016986,2]
[402529330,1768698652597,-500.0,0.00016986,2]
[402529331,1768698652606,-500.0,0.00016986,2]
[402529332,1768698652616,-500.0,0.00016986,2]
[402529333,1768698652625,-500.0,0.00016986,2]
[402529334,1768698652635,-500.0,0.00016986,2]
[402529335,1768698652644,-500.0,0.00016986,2]
[402529336,1768698652654,-500.0,0.00016986,2]
[402529337,1768698652664,-436.77903145,0.00016986,2]
[402529338,1768698652674,-500.0,0.00016986,2]
[402529339,1768698652683,-500.0,0.00016986,2]
[402529340,1768698652692,-500.0,0.00016986,2]
[402529341,1768698652703,-523.72,0.00016986,2]
[402529342,1768698652712,-500.0,0.00016986,2]
[402529343,1768698652721,-500.0,0.00016986,2]
[402529344,1768698652731,-500.0,0.00016986,2]
[402529345,1768698652740,-500.0,0.00016986,2]
[402529346,1768698652750,-500.0,0.00016986,2]
[402529347,1768698652760,-500.0,0.00016986,2]
[402529348,1768698652770,-500.0,0.00016986,2]
[402529349,1768698652780,-1274.89711295,0.00016986,2]
[402529350,1768698652790,-500.0,0.00016986,2]
[402529351,1768698652800,-500.0,0.00016986,2]
[402529352,1768698652810,-200.0,0.00016986,2]
[402529353,1768698652820,-744.66,0.00016986,2]
[402529354,1768698652829,-500.0,0.00016986,2]
[402529355,1768698652839,-605.9,0.00016986,2]
[402529356,1768698652848,-500.0,0.00016986,2]
[402529357,1768698652858,-500.0,0.00016986,2]
[402529358,1768698652867,-500.0,0.00016986,2]
[402529359,1768698652877,-551.42,0.00016986,2]
[402529360,1768698652887,-500.0,0.00016986,2]
[402529361,1768698652897,-658.33,0.00016986,2]
[402529362,1768698652906,-500.0,0.00016986,2]
[402529363,1768698652916,-500.0,0.00016986,2]
[402529364,1768698652926,-500.0,0.00016986,2]
[402529365,1768698652936,-418.01785334,0.00016986,2]
[402529366,1768698652945,-500.0,0.00016986,2]
[402529367,1768698652955,-500.0,0.00016986,2]
[402529368,1768698652964,-500.0,0.00016986,2]
[402529369,1768698652974,-500.0,0.00016986,2]
[402529370,1768698652983,-274.23000097,0.00016986,2]
[402529371,1768698652993,-500.0,0.00016986,2]
[402529372,1768698653002,-500.0,0.00016986,2]
[402529373,1768698653012,-500.0,0.00016986,2]
[402529374,1768698653022,-612.18,0.00016986,2]
[402529375,1768698653032,-500.0,0.00016986,2]
[402529376,1768698653042,-500.0,0.00016986,2]
[402529377,1768698653053,-500.0,0.00016986,2]
[402529378,1768698653063,-540.32,0.00016986,2]
[402529379,1768698653073,-528.38,0.00016986,2]
[402529380,1768698653084,-500.0,0.00016986,2]
[402529381,1768698653094,-690.89,0.00016986,2]
[402529382,1768698653103,-500.0,0.00016986,2]
[402529383,1768698653114,-500.0,0.00016986,2]
[402529384,1768698653123,-500.0,0.00016986,2]
[402529385,1768698653133,-660.18,0.00016986,2]
[402529386,1768698653143,-500.0,0.00016986,2]
[402529387,1768698653153,-500.0,0.00016986,2]
[402529388,1768698653163,-500.0,0.00016986,2]
[402529389,1768698653173,-500.0,0.00016986,2]
[402529390,1768698653183,-591.87,0.00016986,2]
[402529391,1768698653192,-500.0,0.00016986,2]
[402529392,1768698653202,-500.0,0.00016986,2]
[402529393,1768698653214,-500.0,0.00016986,2]
[402529394,1768698653226,-500.0,0.00016986,2]
[402529395,1768698653237,-500.0,0.00016986,2]
[402529396,1768698653247,-500.0,0.00016986,2]
[402529397,1768698653258,-500.0,0.00016986,2]
[402529398,1768698653268,-500.0,0.00016986,2]
[402529399,1768698653278,-500.0,0.00016986,2]
[402529400,1768698653516,-626.39,0.00016986,2]
[402529401,1768698653536,-500.0,0.00016986,2]
[402529402,1768698653547,-500.0,0.00016986,2]
[402529403,1768698653557,-664.91,0.00016986,2]
[402529404,1768698653568,-500.0,0.00016986,2]
[402529405,1768698653578,-500.0,0.00016986,2]
[402529406,1768698653588,-660.95,0.00016986,2]
[402529407,1768698653599,-335.68165223,0.00016986,2]
[402529408,1768698653609,-500.0,0.00016986,2]
[402529409,1768698653619,-612.83,0.00016986,2]
[402529410,1768698653628,-500.0,0.00016986,2]
[402529411,1768698653638,-500.0,0.00016986,2]
[402529412,1768698653648,-500.0,0.00016986,2]
[402529413,1768698653658,-500.0,0.00016986,2]
[402529414,1768698653668,-500.0,0.00016986,2]
[402529415,1768698653678,-500.0,0.00016986,2]
[402529416,1768698653689,-500.0,0.00016986,2]
[402529417,1768698653699,-606.80685163,0.00016986,2]
[402529418,1768698653709,-500.0,0.00016986,2]
[402529419,1768698653719,-391.62274131,0.00016986,2]
[402529420,1768698653729,-500.0,0.00016986,2]
[402529421,1768698653739,-500.0,0.00016986,2]
[402529422,1768698653749,-589.94,0.00016986,2]
[402529423,1768698653759,-603.7,0.00016986,2]
[402529424,1768698653769,-500.0,0.00016986,2]
[402529425,1768698653778,-500.0,0.00016986,2]
[402529426,1768698653788,-500.0,0.00016986,2]
[402529427,1768698653799,-500.0,0.00016986,2]
[402529428,1768698653809,-500.0,0.00016986,2]
[402529429,1768698653819,-654.72,0.00016986,2]
[402529430,1768698653829,-500.0,0.00016986,2]
[402529431,1768698653839,-500.0,0.00016986,2]
[402529432,1768698653849,-500.0,0.00016986,2]
[402529433,1768698653859,-500.0,0.00016986,2]
[402529434,1768698653870,-494.12029145,0.00016986,2]
[402529435,1768698653880,-500.0,0.00016986,2]
[402529436,1768698653890,-265.24,0.00016986,2]
[402529437,1768698653900,-933.13,0.00016986,2]
[402529438,1768698653911,-500.0,0.00016986,2]
[402529439,1768698653921,-500.0,0.00016986,2]
[402529440,1768698653932,-570.2,0.00016986,2]
[402529441,1768698653941,-500.0,0.00016986,2]
[402529442,1768698653951,-632.99433417,0.00016986,2]
[402529443,1768698653961,-500.0,0.00016986,2]
[402529444,1768698653970,-500.0,0.00016986,2]
[402529445,1768698653980,-600.84,0.00016986,2]
[402529446,1768698653989,-500.0,0.00016986,2]
[402529447,1768698653999,-500.0,0.00016986,2]
[402529448,1768698654010,-500.0,0.00016986,2]
[402529449,1768698654019,-500.0,0.00016986,2]
[402529450,1768698654029,-500.0,0.00016986,2]